{"text_format":"1","workbook":"xlsx","n_sheets":13,"sheets":["Dashboard","MSHEETS","FORMULARIOS","COTIZACION","REGISTRO COTIZACIONES","DETALLE COTIZACIONES","PRODUCTOS","SEGUIMIENTO","Parámetros","DATOS_GENERALES","UBICACIONES","CLIENTES","Interfaz"],"not_rendered":{"charts":0,"images":11,"macros":1,"external_links":0,"defined_names":10,"comments":0,"pivot_tables":0},"unopened":[],"bounds":{"document_bytes":16777216,"sheet_cells":100000,"rows_first":2000,"rows_last":500,"rows_between":2000,"halvings":0,"cell_chars":16384,"cell_head_chars":4096},"cells_cut":0,"cells_raw":0,"read":"whole","date_system":"1900"}

{"sheet":"Dashboard","index":0,"n_rows":0,"n_cols":0,"rows_kept":0,"cut":false,"hidden":true,"merged":[]}

{"sheet":"MSHEETS","index":1,"n_rows":0,"n_cols":0,"rows_kept":0,"cut":false,"hidden":false,"merged":[]}

{"sheet":"FORMULARIOS","index":2,"n_rows":28,"n_cols":41,"rows_kept":28,"cut":false,"hidden":true,"merged":[]}
["-","-","-","COLUMNA",null,null,null,null,null,null,null,null,null,null,null,null,null,null,null,null,"encabesado","columna",null,"encabesado","columna",null,null,null,null,null,null,null,null,null,null,null,null,null,"DETALLE","CONTROL","COLUMNA"]
["ID","TextBox27",1,"A",null,"ID Interacción","TextBox27","A",null,"Departamento","A",null,"ID_Cotización","TextBox34",null,null,null,null,null,null,"ID_Cotización","A",null,"ID_Detalle","A",null,null,null,null,null,null,null,null,"ID_Cotización","A","ID_Cliente","A",null,"ID_Artículo","TextBox4","A"]
["Tipo de Doc","ComboBox2",null,"B",null,"ID Cliente","TextBox28","B",null,"Provincia","B",null,"Fecha_Cotización",null,null,null,null,null,null,null,"Fecha_Cotización","B",null,"ID_Cotización","B",null,"ENCABESADO","COLUMNA",null,null,null,null,null,"Fecha_Cotización","B","Tipo de Doc","B",null,"Cod_Interno","TextBox1","B"]
["N° de Doc","TextBox12",null,"C","TextBox14","Fecha de la acción","TextBox29","C",null,"Distrito","C",null,"ID_Cliente","TextBox35",null,null,null,null,null,null,"ID_Cliente","C",null,"ID_Artículo","C",null,"Ítem","C",null,null,null,null,null,"ID_Cliente","C","N° de Doc","C",null,"Descripcion","TextBox3","C"]
["Razón Social","TextBox1",1,"D","TextBox13","Tipo de acción","ComboBox2","D",null,null,null,null,"N° de Doc","TextBox14",null,null,null,"ID_Artículo","A",null,"Moneda","D",null,"Detalle_Producto","D",null,"Código","D",null,null,null,null,null,"Estado_Cotización","I","Razón Social","D",null,"Tipo","ComboBox5","D"]
["Nombre Comercial","TextBox2",1,"E",null,"Motivo de la acción","ComboBox3","E",null,null,null,null,"Razón Social","TextBox13",null,null,null,"Cod_Interno","B",null,"IGV_Aplica","E",null,"Cantidad","E",null,"Descripción","E",null,null,null,null,null,"Total","J","Nombre Comercial","E",null,"Marca","ComboBox6","E"]
["Dirección","TextBox14",null,"F","TextBox16","Producto o servicio","TextBox22","F",null,null,null,null,"Dirección","TextBox16",null,null,null,"Descripcion","C",null,"Forma_Pago","F",null,"Precio Unitario","F",null,"UM","F",null,null,null,null,null,null,null,"Dirección","F",null,"Unidad de medida","ComboBox4","F"]
["Coordenadas","TextBox13",null,"G",null,"Descripción breve","TextBox17","G",null,null,null,null,"Nombre","TextBox15","K",null,null,"Tipo","D",null,"Garantía","G",null,"Total parcial","G",null,"Cantidad","G",null,null,null,null,null,null,null,"Coordenadas","G",null,"Precio_Sugerido","TextBox33","G"]
["Departamento","TextBox15",1,"H",null,"Responsable","ComboBox4","H",null,null,null,null,"Número","TextBox18","N",null,null,"Marca","E",null,"Entrega","H",null,null,null,null,"Precio Unitario","H",null,null,null,null,null,null,null,"Departamento","H"]
["Provincia","TextBox17",null,"I",null,"Resultado","ComboBox5","I",null,null,null,null,null,null,null,null,null,"Unidad de medida","F",null,"Estado_Cotización","I",null,null,null,null,"Total","I",null,null,null,null,null,null,null,"Provincia","I"]
["Distrito","TextBox18",null,"J",null,null,null,null,null,null,null,null,null,null,null,null,null,"Precio_Sugerido","G",null,null,null,null,null,null,null,null,null,null,null,null,null,null,null,null,"Distrito","J"]
["Nombre","TextBox22",1,"K","TextBox15",null,null,null,null,null,null,null,null,null,null,null,null,null,null,null,null,null,null,null,null,null,null,null,null,null,null,null,null,null,null,"Nombre","K"]
["Cargo","TextBox21",1,"L",null,null,null,null,null,null,null,null,"Moneda","ComboBox3",null,null,null,null,null,null,null,null,null,null,null,null,null,null,null,null,null,null,null,null,null,"Cargo","L"]
["Codigo","TextBox24",null,"M",null,null,null,null,null,null,null,null,"IGV_Aplica","ComboBox7",null,null,null,null,null,null,null,null,null,null,null,null,null,null,null,null,null,null,null,null,null,"Codigo","M"]
["Número","TextBox25",null,"N","TextBox18",null,null,null,null,null,null,null,"Forma_Pago","ComboBox5",null,null,null,null,null,null,null,null,null,null,null,null,null,null,null,null,null,null,null,null,null,"Número","N"]
["Fijo","TextBox28",null,"O",null,null,null,null,null,null,null,null,"Garantía","ComboBox4",null,null,null,null,null,null,null,null,null,null,null,null,null,null,null,null,null,null,null,null,null,"Fijo","O"]
["Correo","TextBox6",null,"P",null,null,null,null,null,null,null,null,"Entrega","ComboBox6",null,null,null,null,null,null,null,null,null,null,null,null,null,null,null,null,null,null,null,null,null,"Correo","P"]
["OBS","TextBox29",null,"Q",null,null,null,null,null,null,null,null,"Estado_Cotización",null,null,null,null,null,null,null,null,null,null,null,null,null,null,null,null,null,null,null,null,null,null,"OBS","Q"]
["Tipo de Cliente","ComboBox3",null,"R",null,null,null,null,null,null,null,null,null,null,null,null,null,null,null,null,null,null,null,null,null,null,null,null,null,null,null,null,null,null,null,"Tipo de Cliente","R"]
["Rubro","ComboBox4",null,"S",null,null,null,null,null,null,null,null,null,null,null,null,null,null,null,null,null,null,null,null,null,null,null,null,null,null,null,null,null,null,null,"Rubro","S"]
["Tamaño","ComboBox5",null,"T",null,null,null,null,null,null,null,null,null,null,null,null,null,null,null,null,null,null,null,null,null,null,null,null,null,null,null,null,null,null,null,"Tamaño","T"]
["Estado","ComboBox6",1,"U",null,null,null,null,null,null,null,null,null,null,null,null,null,null,null,null,null,null,null,null,null,null,null,null,null,null,null,null,null,null,null,"Estado","U"]
["Web","TextBox7",null,"V",null,null,null,null,null,null,null,null,null,null,null,null,null,null,null,null,null,null,null,null,null,null,null,null,null,null,null,null,null,null,null,"Web","V"]
["Facebook","TextBox8",null,"W",null,null,null,null,null,null,null,null,null,null,null,null,null,null,null,null,null,null,null,null,null,null,null,null,null,null,null,null,null,null,null,"Facebook","W"]
["WhatsApp","TextBox10",null,"X",null,null,null,null,null,null,null,null,null,null,null,null,null,null,null,null,null,null,null,null,null,null,null,null,null,null,null,null,null,null,null,"WhatsApp","X"]
["Instagram","TextBox11",null,"Y",null,null,null,null,null,null,null,null,null,null,null,null,null,null,null,null,null,null,null,null,null,null,null,null,null,null,null,null,null,null,null,"Instagram","Y"]
["TikTok","TextBox20",null,"Z",null,null,null,null,null,null,null,null,null,null,null,null,null,null,null,null,null,null,null,null,null,null,null,null,null,null,null,null,null,null,null,"TikTok","Z"]
["LinkedIn","TextBox9",null,"AA",null,null,null,null,null,null,null,null,null,null,null,null,null,null,null,null,null,null,null,null,null,null,null,null,null,null,null,null,null,null,null,"LinkedIn","AA"]

{"sheet":"COTIZACION","index":3,"n_rows":32,"n_cols":9,"rows_kept":32,"cut":false,"hidden":true,"merged":[]}
[]
[]
[null,null,null,"Razón Social:",{"$f":"RazonSocial","v":"ALBERTO MONTELUIS ASPAJO"},null,null,"Cotización"]
[null,null,null,"Ruc:",{"$f":"Ruc","v":10752440099},null,null,"Fecha:",{"$f":"IFERROR(IF(I5=\"\",\"\",INDEX(tbl_Cotizaciones[],MATCH(I5,tbl_Cotizaciones[ID_Cotización],0),2)),\"\")","v":"2025-04-11"}]
[null,null,null,"Dirección:",{"$f":"DiereccionFiscal","v":"CALLE. TORDO #4455 - SANTIAGO DE SURCO"},null,null,"N° cotización:",582]
[]
[null,null,null,null,null,null,null,"Cotización válida hasta:"]
[null,null,"Cliente:","PATRULLA 105 SEGURITY S.A.C.",null,null,null,null,{"$f":"IFERROR(I4+7,\"\")","v":"2025-04-18"}]
[null,null,"DNI / Ruc:",20613967762]
[null,null,"Dirección:","OTR.AGR PROGRAMA DE VIV. KM. A MZA. 38 URB. LAS PALMAS PACHACAMAC LIMA - LIMA - PACHACAMAC"]
[null,null,"Atención:","ELBER PEÑA"]
[null,null,"Teléfono:",932153984]
[]
[null,null,"Ítem","Código","Descripción","UM","Cantidad","Precio Unitario","Total"]
[null,null,1,"PGW","Creación de Página WEB\r\n*(PAGO UNICO)\r\n\r\nINCLUYE:\r\n-Diseño web personalizado\r\n-Dominio .com incluido por un año\r\n-Configuración e instalación completa en el servidor.\r\n-Estructura del sitio (INICIO, NOSOTROS, SERVICIOS Y CONTACTO)\r\n","SRV",1,254.2373,254.2373]
[null,null,2,"MTNMPGW","Mantenimiento Pagina WEB\n*(Este Pago se Realizara de manera mensual)\n\nINCLUYE:\n-Actualizaciones de seguridad y sistema:\n-Alojamiento web (hosting)\n-Copias de seguridad automáticas\n-Soporte técnico permanente\n","SRV",1,42.372900000000001,42.372900000000001]
[null,null,3,"PGW","02 Correos coorporativos (GRATIS)","SRV",1,1E-3,1E-3]
[]
[]
[]
[]
[]
[]
[]
[]
[]
[]
[null,null,null,null,null,null,null,"Sub total:",{"$f":"SUM(I15:I27)","v":296.6112}]
[null,null,null,"Moneda:","Soles (PEN)",null,null,"IGV 18%:",53.39]
[null,null,null,"Garantia:","-",null,null,"TOTAL:",{"$f":"SUM(I28:I29)","v":350.00119999999998}]
[null,null,null,"Forma de Pago:","Contado"]
[null,null,null,"Entrega:","Entrega inmediata"]

{"sheet":"REGISTRO COTIZACIONES","index":4,"n_rows":8,"n_cols":10,"rows_kept":8,"cut":false,"hidden":true,"merged":[]}
[]
["ID_Cotización","Fecha_Cotización","ID_Cliente","Moneda","IGV_Aplica","Forma_Pago","Garantía","Entrega","Estado_Cotización","Total"]
[577,"2025-03-20",75,"Soles (PEN)","SI","Contado","-","Entrega inmediata","Pendiente",{"$f":"IF(tbl_Cotizaciones[[#This Row],[IGV_Aplica]]=\"SI\",SUMIFS(tbl_DetalleCotización[Total parcial],tbl_DetalleCotización[ID_Cotización],tbl_Cotizaciones[[#This Row],[ID_Cotización]])*1.18,SUMIFS(tbl_DetalleCotización[Total parcial],tbl_DetalleCotización[ID_Cotización],tbl_Cotizaciones[[#This Row],[ID_Cotización]]))","v":249.99999199999996}]
[578,"2025-03-24",2,"Soles (PEN)","NO","Contado","-","Entrega inmediata","Pendiente",{"$f":"IF(tbl_Cotizaciones[[#This Row],[IGV_Aplica]]=\"SI\",SUMIFS(tbl_DetalleCotización[Total parcial],tbl_DetalleCotización[ID_Cotización],tbl_Cotizaciones[[#This Row],[ID_Cotización]])*1.18,SUMIFS(tbl_DetalleCotización[Total parcial],tbl_DetalleCotización[ID_Cotización],tbl_Cotizaciones[[#This Row],[ID_Cotización]]))","v":10800}]
[579,"2025-03-28",13,"Soles (PEN)","NO","Contado","-","Entrega inmediata","Pendiente",{"$f":"IF(tbl_Cotizaciones[[#This Row],[IGV_Aplica]]=\"SI\",SUMIFS(tbl_DetalleCotización[Total parcial],tbl_DetalleCotización[ID_Cotización],tbl_Cotizaciones[[#This Row],[ID_Cotización]])*1.18,SUMIFS(tbl_DetalleCotización[Total parcial],tbl_DetalleCotización[ID_Cotización],tbl_Cotizaciones[[#This Row],[ID_Cotización]]))","v":33220}]
[580,"2025-03-28",13,"Soles (PEN)","SI","Contado","-","Entrega inmediata","Pendiente",{"$f":"IF(tbl_Cotizaciones[[#This Row],[IGV_Aplica]]=\"SI\",SUMIFS(tbl_DetalleCotización[Total parcial],tbl_DetalleCotización[ID_Cotización],tbl_Cotizaciones[[#This Row],[ID_Cotización]])*1.18,SUMIFS(tbl_DetalleCotización[Total parcial],tbl_DetalleCotización[ID_Cotización],tbl_Cotizaciones[[#This Row],[ID_Cotización]]))","v":39199.599999999999}]
[581,"2025-03-28",13,"Soles (PEN)","SI","Contado","-","Entrega inmediata","Pendiente",{"$f":"IF(tbl_Cotizaciones[[#This Row],[IGV_Aplica]]=\"SI\",SUMIFS(tbl_DetalleCotización[Total parcial],tbl_DetalleCotización[ID_Cotización],tbl_Cotizaciones[[#This Row],[ID_Cotización]])*1.18,SUMIFS(tbl_DetalleCotización[Total parcial],tbl_DetalleCotización[ID_Cotización],tbl_Cotizaciones[[#This Row],[ID_Cotización]]))","v":39199.699946000001}]
[582,"2025-04-11",14,"Soles (PEN)","SI","Contado","-","Entrega inmediata","Pendiente",{"$f":"IF(tbl_Cotizaciones[[#This Row],[IGV_Aplica]]=\"SI\",SUMIFS(tbl_DetalleCotización[Total parcial],tbl_DetalleCotización[ID_Cotización],tbl_Cotizaciones[[#This Row],[ID_Cotización]])*1.18,SUMIFS(tbl_DetalleCotización[Total parcial],tbl_DetalleCotización[ID_Cotización],tbl_Cotizaciones[[#This Row],[ID_Cotización]]))","v":370.00115399999999}]

{"sheet":"DETALLE COTIZACIONES","index":5,"n_rows":33,"n_cols":7,"rows_kept":33,"cut":false,"hidden":true,"merged":[]}
[]
["ID_Detalle","ID_Cotización","ID_Artículo","Detalle_Producto","Cantidad","Precio Unitario","Total parcial"]
[13,577,1,"Marketing Digital (paquete Despegue)",1,211.86439999999999,211.86439999999999]
[14,578,1,"Administrador",1,2400,2400]
[15,578,2,"Conserje Diurno",1,2100,2100]
[16,578,3,"Conserje Nocturno",1,2100,2100]
[17,578,4,"Conserje de Descanso",1,1100,1100]
[18,578,5,"Personal de Limpieza",1,1500,1500]
[19,578,6,"Personal de Limpieza de Descanso",1,600,600]
[20,578,7,"Personal de Jardinería",1,300,300]
[21,578,8,"Gastos Contables",1,700,700]
[22,579,1,"Administrador",1,3750,3750]
[23,579,9,"Personal de Vigilancia",6,1890,11340]
[24,579,10,"Personal de Vigilancia de Descanso",2,1890,3780]
[25,579,11,"Supervisor",2,2100,4200]
[26,579,5,"Personal de Limpieza",5,1610,8050]
[27,579,7,"Personal de Jardinería",1,2100,2100]
[28,580,1,"Administrador",1,3750,3750]
[29,580,9,"Personal de Vigilancia",6,1890,11340]
[30,580,10,"Personal de Vigilancia de Descanso",2,1890,3780]
[31,580,11,"Supervisor",2,2100,4200]
[32,580,5,"Personal de Limpieza",5,1610,8050]
[33,580,7,"Personal de Jardinería",1,2100,2100]
[34,581,1,"Administrador",1,3750,3750]
[35,581,9,"Personal de Vigilancia",6,1890,11340]
[36,581,10,"Personal de Vigilancia de Descanso",2,1890,3780]
[37,581,11,"Supervisor",2,2100,4200]
[38,581,5,"Personal de Limpieza",5,1610,8050]
[39,581,7,"Personal de Jardinería",1,2100,2100]
[40,581,12,"Servicio de Marketing y Publicidad\r\nINCLUYE:\r\n- Campañas publicitarias para Captar nuevos Arrendatarios/Propietarios",1,8.4699999999999998E-2,8.4699999999999998E-2]
[41,582,1,"Creación de Página WEB\r\n*(PAGO UNICO)\r\n\r\nINCLUYE:\r\n-Diseño web personalizado\r\n-Dominio .com incluido por un año\r\n-Configuración e instalación completa en el servidor.\r\n-Estructura del sitio (INICIO, NOSOTROS, SERVICIOS Y CONTACTO)\r\n",1,254.2373,254.2373]
[42,582,2,"Mantenimiento Pagina WEB\r\n*(Este Pago re Realizara de manera mensual)\r\n\r\nINCLUYE:\r\n-Actualizaciones de seguridad y sistema:\r\n-Alojamiento web (hosting)\r\n-Copias de seguridad automáticas\r\n-Soporte técnico permanente\r\n",1,59.322000000000003,59.322000000000003]
[43,582,1,"02 Correos coorporativos (GRATIS)",1,1E-3,1E-3]

{"sheet":"PRODUCTOS","index":6,"n_rows":7,"n_cols":7,"rows_kept":7,"cut":false,"hidden":true,"merged":[]}
[]
["ID_Artículo","Cod_Interno","Descripcion","Tipo","Marca","Unidad de medida","Precio_Sugerido"]
[1,"PGW","Creación de Paguina WEB","Servico","-","SRV",500]
[2,"MTNMPGW","Mantenimiento Pagina WEB","Servico","-","SRV",120]
[3,"jj","prueba","Producto","Generica","UND",9]
[4,"lll","bello","Producto","Generica","UND",89]
[5,"lkl","lkllkl","Servico","Generica","UND",765]

{"sheet":"SEGUIMIENTO","index":7,"n_rows":20,"n_cols":9,"rows_kept":20,"cut":false,"hidden":true,"merged":[]}
[]
["ID Interacción","ID Cliente","Fecha de la acción","Tipo de acción","Motivo de la acción","Producto o servicio","Descripción breve","Responsable","Resultado"]
[1,1,"2025-03-14","Llamada","Prospección","Software ERP","Se presentó la empresa y los servicios","ALBERTO MONTELUIS","Interesado"]
[2,3,"18/03/2025","WhatsApp","Seguimiento","Control de condominios",null,"ALBERTO MONTELUIS","Interesado"]
[3,3,"25/03/2025","Visita","Presentación de servicio","Control de condominios","NO ASISTIMOS POR RECOMENDACION DE ELBER m...","ALBERTO MONTELUIS","No es el tomador de decisiones"]
[4,4,"24/03/2025","WhatsApp","Seguimiento","Control de condominios",null,"ALBERTO MONTELUIS","Interesado"]
[5,5,"26/03/2025","WhatsApp","Prospección","-","enviamos un mensaje de presentacion, y broshure tambien una imagen de contactos","ALBERTO MONTELUIS","Pendiente de respuesta"]
[6,6,"26/03/2025","WhatsApp","Prospección","-","enviamos un mensaje de presentacion, y broshure tambien una imagen de contactos","ALBERTO MONTELUIS","Pendiente de respuesta"]
[7,7,"26/03/2025","WhatsApp","Prospección","-","enviamos un mensaje de presentacion, y broshure tambien una imagen de contactos","ALBERTO MONTELUIS","Pendiente de respuesta"]
[8,8,"26/03/2025","WhatsApp","Prospección","-","enviamos un mensaje de presentacion, y broshure tambien una imagen de contactos","ALBERTO MONTELUIS","Pendiente de respuesta"]
[9,12,"27/03/2025","WhatsApp","Prospección","SERVICIOS","Marianella Ricaldi nos compartiolos contactos de la nueva junta de propietarios","ALBERTO MONTELUIS","Solicita más información"]
[10,12,"27/03/2025","WhatsApp","Seguimiento","Administración","Envie información a todos los contactos, pero solo contesto Jose Clinton: Vocal de Seguridad","ALBERTO MONTELUIS","Interesado"]
[11,9,"27/03/2025","WhatsApp","Prospección","Administración",null,"ALBERTO MONTELUIS","Pendiente de respuesta"]
[12,10,"27/03/2025","WhatsApp","Prospección","Administración",null,"ALBERTO MONTELUIS","Pendiente de respuesta"]
[13,11,"27/03/2025","WhatsApp","Prospección","Administración",null,"ALBERTO MONTELUIS","Pendiente de respuesta"]
[14,12,"28/03/2025","WhatsApp","Seguimiento","Administracion de Condominios","La presidenta Miluska nos pidio información , se recomienda hacer seguimiento en 2 dias\r\n\r\nrevisar","ALBERTO MONTELUIS","Interesado"]
[15,14,"20/04/2025","Email","Prospección","k",null,"ALBERTO MONTELUIS","Interesado"]
[16,13,"20/04/2025","Llamada","Prospección","m",null,"ALBERTO MONTELUIS","Interesado"]
[17,4,"20/04/2025","Llamada","Requerimiento de información","m",null,"ALBERTO MONTELUIS","Interesado"]
[18,7,"20/04/2025","Llamada","Requerimiento de información",",,",null,"ALBERTO MONTELUIS","Interesado"]

{"sheet":"Parámetros","index":8,"n_rows":23,"n_cols":13,"rows_kept":23,"cut":false,"hidden":true,"merged":[]}
["Contraseña:",2025,"Ingreso rapido:",2025]
[]
["RUC:",10752440099]
["Razón Social:","ALBERTO MONTELUIS ASPAJO"]
["Dirección:","CALLE. TORDO #4455 - SANTIAGO DE SURCO"]
[]
["Rubro",null,"Estado",null,"Acciones",null,"Motivos de la Acción",null,"Resultados",null,"Responsable",null,"Marca"]
["Edificios y condominios",null,"Prospección",null,"Llamada",null,"Prospección",null,"Interesado",null,"ALBERTO MONTELUIS",null,"Generica"]
["Alimentación y Bebidas",null,"Primer Contacto",null,"Email",null,"Requerimiento de información",null,"No interesado",null,"CARLOS VERONA"]
["Comercio",null,"Cliente Interesado",null,"WhatsApp",null,"Seguimiento",null,"Solicita más información"]
["Construcción",null,"Cliente Potencial",null,"Videollamada",null,"Presentación de producto",null,"Pendiente de respuesta"]
["Educación",null,"Evaluación",null,"Visita",null,"Presentación de servicio",null,"Cita agendada"]
["Energía",null,"Propuesta",null,"Reunión",null,"Recordatorio",null,"Venta cerrada"]
["Finanzas y Banca",null,"Negociación",null,"Cotización Enviada",null,"Soporte/Incidencia",null,"Cotización enviada"]
["Logística y Transporte",null,"Cierre de Venta",null,"Cierre de Venta",null,"Queja/Reclamo",null,"Requiere seguimiento"]
["Manufactura",null,"Eliminado",null,"Soporte / Consulta",null,"Renovación/Actualización",null,"No es el tomador de decisiones"]
["Marketing y Publicidad",null,null,null,"Capacitación",null,"Fidelización",null," "]
["Restaurante",null,null,null,"Demostración",null,"Encuesta de satisfacción"]
["Salud",null,null,null,"Encuesta de Satisfacción",null,"Otro"]
["Servicios Profesionales",null,null,null,"Otro"]
["Tecnología"]
["Telecomunicaciones"]
["Turismo y Hospitalidad"]

{"sheet":"DATOS_GENERALES","index":9,"n_rows":28,"n_cols":8,"rows_kept":28,"cut":false,"hidden":true,"merged":[]}
["Cliente","BENIGNO ALBERTO MONTELUIS ASPAJO",null,null,"Accesos",null,"Cliente ID:",{"$f":"MAX(tbl_Clientes[ID])+1","v":15}]
["DNI/RUC",75244009,null,null,"MONTELUIS2025",null,"Seguimiento ID:",{"$f":"MAX(tbl_Seguimiento[ID Interacción])+1","v":19}]
["Nombre Corto","ALBERTO MONTELUIS",null,null,{"$f":"Parámetros!B1","v":2025},null,"Cotización:",{"$f":"MAX(tbl_Cotizaciones[ID_Cotización])+1","v":583}]
["N° Comprobante","DEMO-001",null,null,null,null,"Producto",{"$f":"MAX(tbl_Productos[ID_Artículo])+1","v":6}]
["Fecha de venta:","2025-04-20",null,null,"Dias de Licencia","Licencia:"]
[{"$f":"\"Doc: \"&B4","v":"Doc: DEMO-001"},null,null,null,30,{"$f":"\"MS\"&TEXT(MOD(((TODAY() + YEAR(TODAY())*MONTH(TODAY())*DAY(TODAY()))*1234567+98765),10000000000),\"0000000000\")","v":"MS6502380654"}]
["Ultima Modificación","2025-04-20"]
[null,null,null,null,"Dias Habilitados"]
[null,"Dias",null,null,{"$f":"E6-B11","v":30}]
["Tiempo de venta",{"$f":"TODAY()-B5","v":0},{"$f":"CONCATENATE(DATEDIF(DATE(2024,1,1), DATE(2024,1,1)+B10-1, \"M\"), \" meses y \",\nDATE(2024,1,1)+B10-1 - DATE(YEAR(DATE(2024,1,1)+B10-1), MONTH(DATE(2024,1,1)+B10-1), 1), \" días\")","v":{"$error":"#NUM!"}}]
["Tiempo de ultima modificación",{"$f":"TODAY()-B7","v":0},{"$f":"CONCATENATE(DATEDIF(DATE(2024,1,1), DATE(2024,1,1)+B11-1, \"M\"), \" meses y \",\nDATE(2024,1,1)+B11-1 - DATE(YEAR(DATE(2024,1,1)+B11-1), MONTH(DATE(2024,1,1)+B11-1), 1), \" días\")","v":{"$error":"#NUM!"}}]
[]
["id","Inicio","Final",null,{"$f":"INDEX(Saludos[],MATCH(RANDBETWEEN(1,15),Saludos[id],0),2)&\" \"&B3&\" \"&INDEX(Saludos[],MATCH(RANDBETWEEN(1,15),Saludos[id],0),3)","v":"¡Bienvenido/a de vuelta, ALBERTO MONTELUIS ! Juntos lograremos que tu dinero trabaje para ti."}]
[1,"¡Hola de nuevo,","! Estoy listo/a para ayudarte con tus finanzas."]
[2,"¡Qué gusto verte,","! Vamos a hacer que cada peso cuente."]
[3,"¡Bienvenido/a de vuelta,","! Sigamos avanzando en tu camino financiero."]
[4,"¡Un placer recibirte,","! Hoy es un buen día para tomar el control de tu dinero."]
[5,"¡Aquí estamos otra vez,","! Vamos a revisar tus ingresos y gastos."]
[6,"¡Saludos cordiales,","! Recuerda que el control financiero es clave para el éxito."]
[7,"¡Hey,","! ¿Qué te gustaría analizar hoy?"]
[8,"¡Es un gran día para ti,","! Siempre es buen momento para mejorar tus finanzas."]
[9,"¡Qué alegría verte por aquí,","! Juntos lograremos que tu dinero trabaje para ti."]
[10,"¡Vamos a por ello,","! Un poco de organización y lograrás grandes cambios."]
[11,"¡Manos a la obra,","! Estoy aquí para hacerte la vida más fácil."]
[12,"¡Preparado/a para optimizar tus finanzas,","! Vamos a darle seguimiento a tu progreso financiero."]
[13,"¡Tu asistente financiero dice hola,","! La constancia es la clave del éxito financiero."]
[14,"¡Aquí listo/a para ayudarte,","! Un pequeño ajuste puede hacer una gran diferencia."]
[15,"¡De vuelta al control financiero,","! Vamos a asegurarnos de que cada gasto valga la pena."]

{"sheet":"UBICACIONES","index":10,"n_rows":52,"n_cols":4,"rows_kept":52,"cut":false,"hidden":true,"merged":[]}
[]
["Departamento","Provincia","Distrito","Ubicación Geográfica"]
["Lima","Lima","Lima","Centro"]
["Lima","Lima","Ancón","Centro"]
["Lima","Lima","Ate","Centro"]
["Lima","Lima","Barranco","Centro"]
["Lima","Lima","Breña","Centro"]
["Lima","Lima","Carabayllo","Centro"]
["Lima","Lima","Chaclacayo","Centro"]
["Lima","Lima","Chorrillos","Centro"]
["Lima","Lima","Cieneguilla","Centro"]
["Lima","Lima","Comas","Centro"]
["Lima","Lima","El Agustino","Centro"]
["Lima","Lima","Independencia","Centro"]
["Lima","Lima","Jesús María","Centro"]
["Lima","Lima","La Molina","Centro"]
["Lima","Lima","La Victoria","Centro"]
["Lima","Lima","Lince","Centro"]
["Lima","Lima","Los Olivos","Centro"]
["Lima","Lima","Lurigancho","Centro"]
["Lima","Lima","Lurín","Centro"]
["Lima","Lima","Magdalena del Mar","Centro"]
["Lima","Lima","Pueblo Libre","Centro"]
["Lima","Lima","Miraflores","Centro"]
["Lima","Lima","Pachacámac","Centro"]
["Lima","Lima","Pucusana","Centro"]
["Lima","Lima","Puente Piedra","Centro"]
["Lima","Lima","Punta Hermosa","Centro"]
["Lima","Lima","Punta Negra","Centro"]
["Lima","Lima","Rímac","Centro"]
["Lima","Lima","San Bartolo","Centro"]
["Lima","Lima","San Borja","Centro"]
["Lima","Lima","San Isidro","Centro"]
["Lima","Lima","San Juan de Lurigancho","Centro"]
["Lima","Lima","San Juan de Miraflores","Centro"]
["Lima","Lima","San Luis","Centro"]
["Lima","Lima","San Martín de Porres","Centro"]
["Lima","Lima","San Miguel","Centro"]
["Lima","Lima","Santa Anita","Centro"]
["Lima","Lima","Santa María del Mar","Centro"]
["Lima","Lima","Santa Rosa","Centro"]
["Lima","Lima","Santiago de Surco","Centro"]
["Lima","Lima","Surquillo","Centro"]
["Lima","Lima","Villa El Salvador","Centro"]
["Lima","Lima","Villa María del Triunfo","Centro"]
["Callao","Callao","Callao","Centro"]
["Callao","Callao","Bellavista","Centro"]
["Callao","Callao","Carmen de la Legua Reynoso","Centro"]
["Callao","Callao","La Perla","Centro"]
["Callao","Callao","La Punta","Centro"]
["Callao","Callao","Ventanilla","Centro"]
["Callao","Callao","Mi Perú","Centro"]

{"sheet":"CLIENTES","index":11,"n_rows":14,"n_cols":30,"rows_kept":14,"cut":false,"hidden":true,"merged":[]}
[]
["ID","Tipo de Doc","N° de Doc","Razón Social","Nombre Comercial","Dirección","Coordenadas","Departamento","Provincia","Distrito","Nombre","Cargo","Codigo","Número","Fijo","Correo","OBS","Tipo de Cliente","Rubro","Tamaño","Estado","Web","Facebook","WhatsApp","Instagram","TikTok","LinkedIn","Ultimo Seguimiento","Días sin contacto","Tarea"]
[3,"RUC",20605319948,"JUNTA DE PROPIETARIOS DEL CONDOMINIO PASEO DEL PARQUE","CONDOMINIO PASEO DEL PARQUE","JR. UNIVERSO N° 291 LA CAMPIÑA",null,"Lima","Lima","Chorrillos","ANDRES CAMARENA","PROPIETARIO",51,991578563,"-","-",null,"Cliente final","Edificios y condominios","Microempresa","Primer Contacto",null,"https://www.facebook.com/p/Condominio-Paseo-del-Parque-100063931064710/?profile_tab_item_selected=mentions&_rdr","https://wa.me/51991578563",null,null,null,{"$f":"IFERROR(\n    _xlfn.AGGREGATE(\n        14,\n        6,\n        (tbl_Seguimiento[Fecha de la acción]) / (tbl_Seguimiento[ID Cliente] = tbl_Clientes[[#This Row],[ID]]),\n        1\n    ),\n    \"Sin seguimiento\"\n)","v":"2025-03-25"},{"$f":"IFERROR(TODAY()-tbl_Clientes[[#This Row],[Ultimo Seguimiento]],\"Sin seguimiento\")","v":26},"PENDIENTE"]
[4,"RUC",20611535369,"JUNTA DE PROPIETARIOS DEL EDIFICIO START","EDIFICIO START","JULIAN SANDOVAL NRO. 155 INT. SSGG URB. DEL BARRIO MEDICO LIMA - LIMA - SURQUILLO",null,"Lima","Lima","Surquillo","NATALY MORALES","ADMINISTRADORA",51,944445811,null,"-",null,"Cliente final","Edificios y condominios","Microempresa","Prospección",null,null,"https://wa.me/51944445811",null,null,null,{"$f":"IFERROR(\n    _xlfn.AGGREGATE(\n        14,\n        6,\n        (tbl_Seguimiento[Fecha de la acción]) / (tbl_Seguimiento[ID Cliente] = tbl_Clientes[[#This Row],[ID]]),\n        1\n    ),\n    \"Sin seguimiento\"\n)","v":"2025-04-20"},{"$f":"IFERROR(TODAY()-tbl_Clientes[[#This Row],[Ultimo Seguimiento]],\"Sin seguimiento\")","v":0},"LISTO"]
[5,"RUC",10000000001,"-","KAROLINE PRESIDENTA PQ 1","-",null,"Lima","Lima","Santiago de Surco","KAROLINE","PRESIDENTA",51,984788272,null,"-",null,"Cliente final","Edificios y condominios","Microempresa","Prospección",null,null,"https://wa.me/51984788272",null,null,null,{"$f":"IFERROR(\n    _xlfn.AGGREGATE(\n        14,\n        6,\n        (tbl_Seguimiento[Fecha de la acción]) / (tbl_Seguimiento[ID Cliente] = tbl_Clientes[[#This Row],[ID]]),\n        1\n    ),\n    \"Sin seguimiento\"\n)","v":"2025-03-26"},{"$f":"IFERROR(TODAY()-tbl_Clientes[[#This Row],[Ultimo Seguimiento]],\"Sin seguimiento\")","v":25},"LISTO"]
[6,"RUC",10000000002,"-","PRESIDENTA EDIFICIO SAUCE","-",null,"Lima","Lima","Santiago de Surco","-","PRESIDENTA",51,994675075,null,"-",null,"Cliente final","Edificios y condominios","Microempresa","Prospección",null,null,"https://wa.me/51994675075",null,null,null,{"$f":"IFERROR(\n    _xlfn.AGGREGATE(\n        14,\n        6,\n        (tbl_Seguimiento[Fecha de la acción]) / (tbl_Seguimiento[ID Cliente] = tbl_Clientes[[#This Row],[ID]]),\n        1\n    ),\n    \"Sin seguimiento\"\n)","v":"2025-03-26"},{"$f":"IFERROR(TODAY()-tbl_Clientes[[#This Row],[Ultimo Seguimiento]],\"Sin seguimiento\")","v":25},"LISTO"]
[7,"RUC",10000000003,"-","DAYANA PRES. LIBERTADORES","-",null,"Lima","Lima","Santiago de Surco","DAYANA","PRESIDENTA",51,966462507,null,"-",null,"Cliente final","Edificios y condominios","Microempresa","Prospección",null,null,"https://wa.me/51966462507",null,null,null,{"$f":"IFERROR(\n    _xlfn.AGGREGATE(\n        14,\n        6,\n        (tbl_Seguimiento[Fecha de la acción]) / (tbl_Seguimiento[ID Cliente] = tbl_Clientes[[#This Row],[ID]]),\n        1\n    ),\n    \"Sin seguimiento\"\n)","v":"2025-04-20"},{"$f":"IFERROR(TODAY()-tbl_Clientes[[#This Row],[Ultimo Seguimiento]],\"Sin seguimiento\")","v":0},"LISTO"]
[8,"RUC",10000000004,"-","VIVIAN PRESIDENTA ELEKTRA","-",null,"Lima","Lima","Santiago de Surco","VIVIAN","PRESIDENTA",51,993851890,null,"-","condominio electra","Cliente final","Edificios y condominios","Microempresa","Prospección",null,null,"https://wa.me/51993851890",null,null,null,{"$f":"IFERROR(\n    _xlfn.AGGREGATE(\n        14,\n        6,\n        (tbl_Seguimiento[Fecha de la acción]) / (tbl_Seguimiento[ID Cliente] = tbl_Clientes[[#This Row],[ID]]),\n        1\n    ),\n    \"Sin seguimiento\"\n)","v":"2025-03-26"},{"$f":"IFERROR(TODAY()-tbl_Clientes[[#This Row],[Ultimo Seguimiento]],\"Sin seguimiento\")","v":25},"LISTO"]
[9,"RUC",10000000005,"-","CINTHIA GUTIÉRREZ","-",null,"Lima","Lima","Santiago de Surco","Cinthia Gutiérrez","PRESIDENTA",51,987783580,null,"-",null,"Cliente final","Edificios y condominios","Microempresa","Prospección",null,null,"https://wa.me/51987783580",null,null,null,{"$f":"IFERROR(\n    _xlfn.AGGREGATE(\n        14,\n        6,\n        (tbl_Seguimiento[Fecha de la acción]) / (tbl_Seguimiento[ID Cliente] = tbl_Clientes[[#This Row],[ID]]),\n        1\n    ),\n    \"Sin seguimiento\"\n)","v":"2025-03-27"},{"$f":"IFERROR(TODAY()-tbl_Clientes[[#This Row],[Ultimo Seguimiento]],\"Sin seguimiento\")","v":24},"LISTO"]
[10,"RUC",10000000006,"-","MARIA PRESIDENTA PQ 2","-",null,"Lima","Lima","Santiago de Surco","Maria","PRESIDENTA",51,964635678,null,"-",null,"Cliente final","Edificios y condominios","Microempresa","Prospección",null,null,"https://wa.me/51964635678",null,null,null,{"$f":"IFERROR(\n    _xlfn.AGGREGATE(\n        14,\n        6,\n        (tbl_Seguimiento[Fecha de la acción]) / (tbl_Seguimiento[ID Cliente] = tbl_Clientes[[#This Row],[ID]]),\n        1\n    ),\n    \"Sin seguimiento\"\n)","v":"2025-03-27"},{"$f":"IFERROR(TODAY()-tbl_Clientes[[#This Row],[Ultimo Seguimiento]],\"Sin seguimiento\")","v":24},"LISTO"]
[11,"RUC",10000000007,"-","RUBÍ PRESIDENTA DE PARQUE 3","-",null,"Lima","Lima","Santiago de Surco","RUBÍ","PRESIDENTA",51,953249251,null,"-",null,"Cliente final","Edificios y condominios","Microempresa","Prospección",null,null,"https://wa.me/51953249251",null,null,null,{"$f":"IFERROR(\n    _xlfn.AGGREGATE(\n        14,\n        6,\n        (tbl_Seguimiento[Fecha de la acción]) / (tbl_Seguimiento[ID Cliente] = tbl_Clientes[[#This Row],[ID]]),\n        1\n    ),\n    \"Sin seguimiento\"\n)","v":"2025-03-27"},{"$f":"IFERROR(TODAY()-tbl_Clientes[[#This Row],[Ultimo Seguimiento]],\"Sin seguimiento\")","v":24},"PENDIENTE"]
[12,"RUC",10000000008,"-","CONDOMINIO PARQUE CENTRAL","-",null,"Lima","Lima","Santiago de Surco","Marianella Julissa","PRESIDENTA",51,998315015,null,"administracion@condominioparquecentral.com","OTROS CONTACTOS: \r\nAdministración Club House 955 931 818 / Presidente Torre E: Miluska Silva 998 871 870 / Vocal de seguridad: José Clinton 922 016 947","Cliente final","Edificios y condominios","Microempresa","Prospección",null,null,"https://wa.me/51998315015",null,null,null,{"$f":"IFERROR(\n    _xlfn.AGGREGATE(\n        14,\n        6,\n        (tbl_Seguimiento[Fecha de la acción]) / (tbl_Seguimiento[ID Cliente] = tbl_Clientes[[#This Row],[ID]]),\n        1\n    ),\n    \"Sin seguimiento\"\n)","v":"2025-03-28"},{"$f":"IFERROR(TODAY()-tbl_Clientes[[#This Row],[Ultimo Seguimiento]],\"Sin seguimiento\")","v":23},"LISTO"]
[13,"RUC",10000000009,"-","CONDOMINIO LA PORTADA DE MONTERRICO","-",null,"Lima","Lima","Santiago de Surco","Jacqueline Manrique","PRESIDENTA",51,955319977,null,"-",null,"Cliente final","Edificios y condominios","Microempresa","Prospección",null,null,"https://wa.me/51955319977",null,null,null,{"$f":"IFERROR(\n    _xlfn.AGGREGATE(\n        14,\n        6,\n        (tbl_Seguimiento[Fecha de la acción]) / (tbl_Seguimiento[ID Cliente] = tbl_Clientes[[#This Row],[ID]]),\n        1\n    ),\n    \"Sin seguimiento\"\n)","v":"2025-04-20"},{"$f":"IFERROR(TODAY()-tbl_Clientes[[#This Row],[Ultimo Seguimiento]],\"Sin seguimiento\")","v":0},"LISTO"]
[14,"RUC",20613967762,"PATRULLA 105 SEGURITY S.A.C.","PATRULLA 105 ","OTR.AGR PROGRAMA DE VIV. KM. A MZA. 38 URB. LAS PALMAS PACHACAMAC LIMA - LIMA - PACHACAMAC",null,"Lima","Lima","Chorrillos","ELBER PEÑA","GERENTE",51,932153984,null,"-",null,"Cliente final","Servicios Profesionales","Microempresa","Cliente Interesado",null,null,"https://wa.me/51932153984",null,null,null,{"$f":"IFERROR(\n    _xlfn.AGGREGATE(\n        14,\n        6,\n        (tbl_Seguimiento[Fecha de la acción]) / (tbl_Seguimiento[ID Cliente] = tbl_Clientes[[#This Row],[ID]]),\n        1\n    ),\n    \"Sin seguimiento\"\n)","v":"2025-04-20"},{"$f":"IFERROR(TODAY()-tbl_Clientes[[#This Row],[Ultimo Seguimiento]],\"Sin seguimiento\")","v":0},"LISTO"]

{"sheet":"Interfaz","index":12,"n_rows":0,"n_cols":0,"rows_kept":0,"cut":false,"hidden":true,"merged":[]}